[Event "Titled Tuesday Blitz May 24 Late 2022"]
[White "Yurovskykh, Oleksandr"]
[Black "Yuan, Qingyu"]
[WhiteFideId "14134020"]
[BlackFideId "8609772"]
[WhiteElo "2292"]
[BlackElo "2359"]
[Result "0-1"]
[Round "10"]
[TimeControl "180+1"]
[Date "2022.05.24"]
[WhiteClock "0:00:05"]
[BlackClock "0:00:08"]

1. d4 {[%clk 0:03:00]}  d5 {[%clk 0:02:56]} 2. Bf4 {[%clk 0:03:00]}  Nf6 {[%clk 0:02:56]} 3. e3 {[%clk 0:03:00]}  e6 {[%clk 0:02:56]} 4. Nd2 {[%clk 0:03:00]}  Bd6 {[%clk 0:02:57]} 5. Bg3 {[%clk 0:03:00]}  O-O {[%clk 0:02:57]} 6. Bd3 {[%clk 0:02:58]}  c5 {[%clk 0:02:56]} 7. c3 {[%clk 0:02:58]}  Qc7 {[%clk 0:02:54]} 8. dxc5 {[%clk 0:02:58]}  Qxc5 {[%clk 0:02:53]} 9. Ngf3 {[%clk 0:02:56]}  Qc7 {[%clk 0:02:29]} 10. Qe2 {[%clk 0:02:54]}  Nc6 {[%clk 0:02:10]} 11. e4 {[%clk 0:02:53]}  dxe4 {[%clk 0:02:09]} 12. Nxe4 {[%clk 0:02:45]}  Nxe4 {[%clk 0:02:09]} 13. Bxe4 {[%clk 0:02:38]}  g6 {[%clk 0:01:40]} 14. O-O-O {[%clk 0:02:28]}  Rd8 {[%clk 0:01:35]} 15. Bxd6 {[%clk 0:02:20]}  Rxd6 {[%clk 0:01:35]} 16. Rxd6 {[%clk 0:02:21]}  Qxd6 {[%clk 0:01:35]} 17. Rd1 {[%clk 0:02:21]}  Qc7 {[%clk 0:01:26]} 18. Qd2 {[%clk 0:02:16]}  b6 {[%clk 0:01:16]} 19. Qh6 {[%clk 0:01:21]}  Bb7 {[%clk 0:00:55]} 20. Ng5 {[%clk 0:01:17]}  f6 {[%clk 0:00:42]} 21. Nxe6 {[%clk 0:01:17]}  Qe7 {[%clk 0:00:40]} 22. Bd5 {[%clk 0:01:08]}  Kh8 {[%clk 0:00:40]} 23. Nf4 {[%clk 0:00:54]}  Ne5 {[%clk 0:00:30]} 24. Bxb7 {[%clk 0:00:54]}  Qxb7 {[%clk 0:00:30]} 25. f3 {[%clk 0:00:43]}  Qf7 {[%clk 0:00:23]} 26. Nd5 {[%clk 0:00:37]}  Rd8 {[%clk 0:00:20]} 27. Qd2 {[%clk 0:00:37]}  Nc4 {[%clk 0:00:18]} 28. Qd4 {[%clk 0:00:35]}  Ne5 {[%clk 0:00:15]} 29. f4 {[%clk 0:00:33]}  Ng4 {[%clk 0:00:06]} 30. h3 {[%clk 0:00:32]}  Ne3 {[%clk 0:00:02]} 31. Qxe3 {[%clk 0:00:17]}  Rxd5 {[%clk 0:00:03]} 32. Rxd5 {[%clk 0:00:18]}  Qxd5 {[%clk 0:00:04]} 33. Qe8+ {[%clk 0:00:18]}  Kg7 {[%clk 0:00:04]} 34. Qe7+ {[%clk 0:00:19]}  Kg8 {[%clk 0:00:03]} 35. Qxa7 {[%clk 0:00:12]}  Qxg2 {[%clk 0:00:03]} 36. Qxb6 {[%clk 0:00:12]}  Qf1+ {[%clk 0:00:02]} 37. Kc2 {[%clk 0:00:12]}  Qxh3 {[%clk 0:00:03]} 38. a4 {[%clk 0:00:10]}  Qf5+ {[%clk 0:00:02]} 39. Kb3 {[%clk 0:00:09]}  h5 {[%clk 0:00:02]} 40. a5 {[%clk 0:00:09]}  h4 {[%clk 0:00:02]} 41. a6 {[%clk 0:00:09]}  Qd5+ {[%clk 0:00:03]} 42. Ka3 {[%clk 0:00:06]}  h3 {[%clk 0:00:03]} 43. a7 {[%clk 0:00:06]}  h2 {[%clk 0:00:03]} 44. Qb8+ {[%clk 0:00:06]}  Kg7 {[%clk 0:00:03]} 45. a8=Q {[%clk 0:00:06]}  h1=Q {[%clk 0:00:04]} 46. Qxd5 {[%clk 0:00:05]}  Qxd5 {[%clk 0:00:04]} 47. Qa7+ {[%clk 0:00:04]}  Kh6 {[%clk 0:00:04]} 48. Qd4 {[%clk 0:00:05]}  Qxd4 {[%clk 0:00:02]} 49. cxd4 {[%clk 0:00:06]}  g5 {[%clk 0:00:03]} 50. fxg5+ {[%clk 0:00:03]}  fxg5 {[%clk 0:00:04]} 51. b4 {[%clk 0:00:01]}  g4 {[%clk 0:00:04]} 52. b5 {[%clk 0:00:02]}  g3 {[%clk 0:00:04]} 53. b6 {[%clk 0:00:03]}  g2 {[%clk 0:00:05]} 54. b7 {[%clk 0:00:03]}  g1=Q {[%clk 0:00:06]} 55. b8=Q {[%clk 0:00:03]}  Qa1+ {[%clk 0:00:06]} 56. Kb3 {[%clk 0:00:04]}  Qb1+ {[%clk 0:00:07]} 57. Kc3 {[%clk 0:00:05]}  Qxb8 {[%clk 0:00:08]} 0-1


[Site "https://www.chess.com"]

[Event "Titled Tuesday Blitz May 24 Late 2022"]
[White "Barria Zuniga, Daniel"]
[Black "Jorquera, Marcelo"]
[WhiteFideId "3400816"]
[BlackFideId "3401197"]
[WhiteElo "2414"]
[BlackElo "2136"]
[Result "1-0"]
[Round "11"]
[TimeControl "180+1"]
[Date "2022.05.25"]
[WhiteClock "0:00:32"]
[BlackClock "0:00:01"]

1. c4 {[%clk 0:03:00]}  Nf6 {[%clk 0:02:58]} 2. g3 {[%clk 0:02:57]}  g6 {[%clk 0:02:58]} 3. Bg2 {[%clk 0:02:57]}  Bg7 {[%clk 0:02:58]} 4. Nc3 {[%clk 0:02:58]}  O-O {[%clk 0:02:56]} 5. d4 {[%clk 0:02:58]}  d6 {[%clk 0:02:56]} 6. e3 {[%clk 0:02:58]}  e5 {[%clk 0:02:43]} 7. Nge2 {[%clk 0:02:58]}  Qe7 {[%clk 0:02:40]} 8. O-O {[%clk 0:02:56]}  Re8 {[%clk 0:02:33]} 9. Qc2 {[%clk 0:02:50]}  e4 {[%clk 0:02:00]} 10. f3 {[%clk 0:02:30]}  Bf5 {[%clk 0:01:49]} 11. fxe4 {[%clk 0:02:26]}  Nxe4 {[%clk 0:01:47]} 12. Nxe4 {[%clk 0:02:25]}  Bxe4 {[%clk 0:01:46]} 13. Bxe4 {[%clk 0:02:25]}  Qxe4 {[%clk 0:01:46]} 14. Qxe4 {[%clk 0:02:25]}  Rxe4 {[%clk 0:01:46]} 15. Nc3 {[%clk 0:02:26]}  Re8 {[%clk 0:01:16]} 16. Bd2 {[%clk 0:02:21]}  c6 {[%clk 0:01:11]} 17. Rae1 {[%clk 0:02:18]}  f5 {[%clk 0:01:08]} 18. h3 {[%clk 0:02:10]}  Nd7 {[%clk 0:01:08]} 19. g4 {[%clk 0:02:02]}  fxg4 {[%clk 0:00:57]} 20. hxg4 {[%clk 0:02:03]}  Nf6 {[%clk 0:00:57]} 21. g5 {[%clk 0:01:58]}  Ne4 {[%clk 0:00:56]} 22. Nxe4 {[%clk 0:01:57]}  Rxe4 {[%clk 0:00:57]} 23. Kf2 {[%clk 0:01:56]}  Rf8+ {[%clk 0:00:51]} 24. Kg3 {[%clk 0:01:53]}  Rfe8 {[%clk 0:00:36]} 25. Rf4 {[%clk 0:01:36]}  d5 {[%clk 0:00:28]} 26. cxd5 {[%clk 0:01:34]}  cxd5 {[%clk 0:00:27]} 27. Rxe4 {[%clk 0:01:32]}  Rxe4 {[%clk 0:00:24]} 28. Rc1 {[%clk 0:01:33]}  Re7 {[%clk 0:00:21]} 29. Kf3 {[%clk 0:01:29]}  Kf7 {[%clk 0:00:19]} 30. Rc8 {[%clk 0:01:25]}  h5 {[%clk 0:00:17]} 31. b4 {[%clk 0:01:02]}  Rd7 {[%clk 0:00:15]} 32. b5 {[%clk 0:01:02]}  Ke6 {[%clk 0:00:14]} 33. a4 {[%clk 0:01:01]}  Rf7+ {[%clk 0:00:12]} 34. Ke2 {[%clk 0:00:51]}  Rd7 {[%clk 0:00:12]} 35. a5 {[%clk 0:00:49]}  Kf5 {[%clk 0:00:12]} 36. Kf3 {[%clk 0:00:48]}  Rf7 {[%clk 0:00:07]} 37. b6 {[%clk 0:00:42]}  axb6 {[%clk 0:00:06]} 38. axb6 {[%clk 0:00:43]}  Kxg5+ {[%clk 0:00:06]} 39. Ke2 {[%clk 0:00:43]}  Kf5 {[%clk 0:00:05]} 40. Kd3 {[%clk 0:00:44]}  h4 {[%clk 0:00:04]} 41. Rd8 {[%clk 0:00:43]}  Ke6 {[%clk 0:00:04]} 42. Bb4 {[%clk 0:00:40]}  g5 {[%clk 0:00:03]} 43. Rd6+ {[%clk 0:00:38]}  Kf5 {[%clk 0:00:03]} 44. Rxd5+ {[%clk 0:00:39]}  Kg4 {[%clk 0:00:03]} 45. Bd6 {[%clk 0:00:38]}  h3 {[%clk 0:00:03]} 46. e4 {[%clk 0:00:37]}  Rf3+ {[%clk 0:00:02]} 47. Kc4 {[%clk 0:00:37]}  Rf2 {[%clk 0:00:02]} 48. Rc5 {[%clk 0:00:36]}  h2 {[%clk 0:00:02]} 49. Bxh2 {[%clk 0:00:35]}  Rxh2 {[%clk 0:00:02]} 50. Rc7 {[%clk 0:00:35]}  Rb2 {[%clk 0:00:02]} 51. Rxb7 {[%clk 0:00:34]}  Bf6 {[%clk 0:00:01]} 52. e5 {[%clk 0:00:34]}  Bd8 {[%clk 0:00:01]} 53. d5 {[%clk 0:00:32]} 1-0


[Site "https://www.chess.com"]

[Event "Titled Tuesday Blitz May 24 Late 2022"]
[White "Bonte, Andrei-Mihai"]
[Black "Kohler, Aran"]
[WhiteFideId "1210297"]
[BlackFideId "1002856"]
[WhiteElo "2192"]
[BlackElo "2254"]
[Result "1-0"]
[Round "11"]
[TimeControl "180+1"]
[Date "2022.05.25"]
[WhiteClock "0:00:11"]
[BlackClock "0:00:14"]

1. d4 {[%clk 0:02:59]}  d5 {[%clk 0:02:38]} 2. Nf3 {[%clk 0:02:58]}  c6 {[%clk 0:02:37]} 3. c4 {[%clk 0:02:55]}  Nf6 {[%clk 0:02:38]} 4. Nc3 {[%clk 0:02:53]}  e6 {[%clk 0:02:38]} 5. e3 {[%clk 0:02:52]}  Nbd7 {[%clk 0:02:37]} 6. b3 {[%clk 0:02:51]}  Bb4 {[%clk 0:02:36]} 7. Bd2 {[%clk 0:02:41]}  O-O {[%clk 0:02:30]} 8. Qc2 {[%clk 0:02:39]}  a5 {[%clk 0:02:22]} 9. Bd3 {[%clk 0:02:37]}  h6 {[%clk 0:02:20]} 10. O-O {[%clk 0:02:36]}  Qe7 {[%clk 0:01:56]} 11. e4 {[%clk 0:02:35]}  Bxc3 {[%clk 0:01:54]} 12. Bxc3 {[%clk 0:02:36]}  dxe4 {[%clk 0:01:55]} 13. Bxe4 {[%clk 0:02:37]}  Nxe4 {[%clk 0:01:55]} 14. Qxe4 {[%clk 0:02:38]}  Nf6 {[%clk 0:01:52]} 15. Qe3 {[%clk 0:02:33]}  b5 {[%clk 0:01:45]} 16. Ne5 {[%clk 0:02:13]}  Bb7 {[%clk 0:01:42]} 17. a4 {[%clk 0:02:03]}  b4 {[%clk 0:01:41]} 18. Bb2 {[%clk 0:02:01]}  c5 {[%clk 0:01:42]} 19. dxc5 {[%clk 0:01:53]}  Rac8 {[%clk 0:01:40]} 20. c6 {[%clk 0:01:04]}  Bxc6 {[%clk 0:01:39]} 21. Qb6 {[%clk 0:01:04]}  Qb7 {[%clk 0:00:55]} 22. Qxb7 {[%clk 0:01:03]}  Bxb7 {[%clk 0:00:54]} 23. f3 {[%clk 0:01:04]}  Rfd8 {[%clk 0:00:51]} 24. Rad1 {[%clk 0:01:03]}  Kf8 {[%clk 0:00:50]} 25. Kf2 {[%clk 0:01:00]}  Ke7 {[%clk 0:00:50]} 26. Ke3 {[%clk 0:00:59]}  g5 {[%clk 0:00:47]} 27. Bd4 {[%clk 0:00:46]}  Nd7 {[%clk 0:00:39]} 28. Nxd7 {[%clk 0:00:29]}  Rxd7 {[%clk 0:00:39]} 29. Bf6+ {[%clk 0:00:28]}  Ke8 {[%clk 0:00:38]} 30. Rxd7 {[%clk 0:00:27]}  Kxd7 {[%clk 0:00:38]} 31. Rd1+ {[%clk 0:00:28]}  Ke8 {[%clk 0:00:37]} 32. g4 {[%clk 0:00:24]}  Bc6 {[%clk 0:00:29]} 33. Rd6 {[%clk 0:00:23]}  Bd7 {[%clk 0:00:28]} 34. Kd4 {[%clk 0:00:14]}  Bc6 {[%clk 0:00:27]} 35. Ke3 {[%clk 0:00:13]}  Kf8 {[%clk 0:00:24]} 36. Rd8+ {[%clk 0:00:12]}  Rxd8 {[%clk 0:00:20]} 37. Bxd8 {[%clk 0:00:13]}  Ke8 {[%clk 0:00:20]} 38. Bxa5 {[%clk 0:00:13]}  f5 {[%clk 0:00:20]} 39. h3 {[%clk 0:00:12]}  f4+ {[%clk 0:00:20]} 40. Ke2 {[%clk 0:00:12]}  Kd7 {[%clk 0:00:18]} 41. Bxb4 {[%clk 0:00:12]}  Kc7 {[%clk 0:00:18]} 42. Bf8 {[%clk 0:00:12]}  e5 {[%clk 0:00:17]} 43. Bxh6 {[%clk 0:00:12]}  e4 {[%clk 0:00:18]} 44. Bxg5 {[%clk 0:00:10]}  exf3+ {[%clk 0:00:16]} 45. Kf2 {[%clk 0:00:11]}  Be4 {[%clk 0:00:17]} 46. Bxf4+ {[%clk 0:00:11]}  Kc6 {[%clk 0:00:14]} 47. Ke3 {[%clk 0:00:10]}  Bc2 {[%clk 0:00:15]} 48. b4 {[%clk 0:00:10]}  Bxa4 {[%clk 0:00:15]} 49. Kxf3 {[%clk 0:00:11]}  Bb3 {[%clk 0:00:14]} 50. c5 {[%clk 0:00:11]}  Bd1+ {[%clk 0:00:13]} 51. Kg3 {[%clk 0:00:11]}  Kb5 {[%clk 0:00:13]} 52. Bd2 {[%clk 0:00:10]}  Ba4 {[%clk 0:00:13]} 53. h4 {[%clk 0:00:10]}  Kc6 {[%clk 0:00:13]} 54. h5 {[%clk 0:00:09]}  Kd7 {[%clk 0:00:13]} 55. Kf4 {[%clk 0:00:10]}  Ke6 {[%clk 0:00:13]} 56. g5 {[%clk 0:00:10]}  Kf7 {[%clk 0:00:13]} 57. g6+ {[%clk 0:00:10]}  Kg8 {[%clk 0:00:13]} 58. Bc3 {[%clk 0:00:09]}  Be8 {[%clk 0:00:11]} 59. Kg5 {[%clk 0:00:10]}  Kf8 {[%clk 0:00:11]} 60. h6 {[%clk 0:00:10]}  Kg8 {[%clk 0:00:11]} 61. h7+ {[%clk 0:00:10]}  Kf8 {[%clk 0:00:12]} 62. h8=Q+ {[%clk 0:00:10]}  Ke7 {[%clk 0:00:13]} 63. Qe5+ {[%clk 0:00:10]}  Kd7 {[%clk 0:00:13]} 64. Qxe8+ {[%clk 0:00:10]}  Kxe8 {[%clk 0:00:13]} 65. Kf6 {[%clk 0:00:11]}  Kd7 {[%clk 0:00:14]} 66. b5 {[%clk 0:00:11]} 1-0


[Site "https://www.chess.com"]

[Event "Titled Tuesday Blitz May 24 Late 2022"]
[White "Bortnyk, Olexandr"]
[Black "Riehle, Marco"]
[WhiteFideId "14120828"]
[BlackFideId "12904392"]
[WhiteElo "2723"]
[BlackElo "2462"]
[Result "1-0"]
[Round "11"]
[TimeControl "180+1"]
[Date "2022.05.24"]
[WhiteClock "0:00:09"]
[BlackClock "0:01:21"]

1. d4 {[%clk 0:00:42]}  d5 {[%clk 0:02:57]} 2. Nc3 {[%clk 0:00:39]}  Nf6 {[%clk 0:02:55]} 3. Bf4 {[%clk 0:00:39]}  e6 {[%clk 0:02:56]} 4. Nb5 {[%clk 0:00:36]}  Na6 {[%clk 0:02:54]} 5. e3 {[%clk 0:00:36]}  c6 {[%clk 0:02:52]} 6. Nc3 {[%clk 0:00:35]}  Nc7 {[%clk 0:02:50]} 7. Nf3 {[%clk 0:00:35]}  Bd6 {[%clk 0:02:49]} 8. Ne5 {[%clk 0:00:32]}  O-O {[%clk 0:02:48]} 9. Bd3 {[%clk 0:00:30]}  c5 {[%clk 0:02:40]} 10. dxc5 {[%clk 0:00:30]}  Bxc5 {[%clk 0:02:40]} 11. Qf3 {[%clk 0:00:30]}  b6 {[%clk 0:02:29]} 12. Qh3 {[%clk 0:00:27]}  Bb7 {[%clk 0:02:26]} 13. Bg5 {[%clk 0:00:25]}  Nce8 {[%clk 0:02:25]} 14. Bxh7+ {[%clk 0:00:24]}  Nxh7 {[%clk 0:02:24]} 15. Bxd8 {[%clk 0:00:24]}  Rxd8 {[%clk 0:02:24]} 16. O-O {[%clk 0:00:24]}  d4 {[%clk 0:02:18]} 17. exd4 {[%clk 0:00:23]}  Bxd4 {[%clk 0:02:19]} 18. Nf3 {[%clk 0:00:23]}  Bxc3 {[%clk 0:02:17]} 19. bxc3 {[%clk 0:00:23]}  Rc8 {[%clk 0:02:17]} 20. Nd2 {[%clk 0:00:14]}  Nef6 {[%clk 0:02:14]} 21. Rfe1 {[%clk 0:00:12]}  Nd5 {[%clk 0:02:14]} 22. Ne4 {[%clk 0:00:12]}  Nhf6 {[%clk 0:02:11]} 23. Nxf6+ {[%clk 0:00:11]}  Nxf6 {[%clk 0:02:12]} 24. Rad1 {[%clk 0:00:11]}  Nd5 {[%clk 0:02:12]} 25. Qh4 {[%clk 0:00:08]}  Rxc3 {[%clk 0:02:10]} 26. Rd3 {[%clk 0:00:09]}  Rxd3 {[%clk 0:01:59]} 27. cxd3 {[%clk 0:00:10]}  Rc8 {[%clk 0:02:00]} 28. h3 {[%clk 0:00:08]}  Nf6 {[%clk 0:01:56]} 29. Qa4 {[%clk 0:00:08]}  a6 {[%clk 0:01:55]} 30. Qd4 {[%clk 0:00:08]}  Nd5 {[%clk 0:01:53]} 31. Rb1 {[%clk 0:00:07]}  b5 {[%clk 0:01:52]} 32. Qa7 {[%clk 0:00:06]}  Rc7 {[%clk 0:01:49]} 33. Qb8+ {[%clk 0:00:07]}  Kh7 {[%clk 0:01:49]} 34. a4 {[%clk 0:00:07]}  b4 {[%clk 0:01:47]} 35. Rxb4 {[%clk 0:00:07]}  Rc1+ {[%clk 0:01:47]} 36. Kh2 {[%clk 0:00:07]}  Nxb4 {[%clk 0:01:45]} 37. Qxb7 {[%clk 0:00:07]}  a5 {[%clk 0:01:39]} 38. Qxf7 {[%clk 0:00:07]}  Nd5 {[%clk 0:01:38]} 39. Qh5+ {[%clk 0:00:07]}  Kg8 {[%clk 0:01:37]} 40. Qe8+ {[%clk 0:00:08]}  Kh7 {[%clk 0:01:38]} 41. Qxe6 {[%clk 0:00:09]}  Nf6 {[%clk 0:01:38]} 42. d4 {[%clk 0:00:09]}  Rd1 {[%clk 0:01:37]} 43. Qf5+ {[%clk 0:00:09]}  Kg8 {[%clk 0:01:37]} 44. Qxa5 {[%clk 0:00:10]}  Rxd4 {[%clk 0:01:36]} 45. Qa8+ {[%clk 0:00:10]}  Kh7 {[%clk 0:01:36]} 46. a5 {[%clk 0:00:11]}  Nd7 {[%clk 0:01:33]} 47. a6 {[%clk 0:00:11]}  Nb6 {[%clk 0:01:31]} 48. Qb7 {[%clk 0:00:11]}  Rd6 {[%clk 0:01:31]} 49. a7 {[%clk 0:00:10]}  Rf6 {[%clk 0:01:30]} 50. a8=Q {[%clk 0:00:10]}  Nxa8 {[%clk 0:01:30]} 51. Qe4+ {[%clk 0:00:10]}  g6 {[%clk 0:01:28]} 52. Qxa8 {[%clk 0:00:11]}  g5 {[%clk 0:01:29]} 53. Qb7+ {[%clk 0:00:10]}  Kh6 {[%clk 0:01:29]} 54. f3 {[%clk 0:00:10]}  g4 {[%clk 0:01:29]} 55. hxg4 {[%clk 0:00:10]}  Rg6 {[%clk 0:01:29]} 56. Qe7 {[%clk 0:00:10]}  Ra6 {[%clk 0:01:28]} 57. Qf7 {[%clk 0:00:09]}  Ra2 {[%clk 0:01:20]} 58. Qxa2 {[%clk 0:00:08]}  Kg5 {[%clk 0:01:20]} 59. Kg3 {[%clk 0:00:08]}  Kf6 {[%clk 0:01:20]} 60. Qd5 {[%clk 0:00:09]}  Kg6 {[%clk 0:01:21]} 61. Kf4 {[%clk 0:00:10]}  Kg7 {[%clk 0:01:21]} 62. Qe6 {[%clk 0:00:09]} 1-0


[Site "https://www.chess.com"]

[Event "Titled Tuesday Blitz May 24 Late 2022"]
[White "Diaz Rosas, Julio Cesar"]
[Black "Bryakin, Mikhail"]
[WhiteFideId "5105099"]
[BlackFideId "4165314"]
[WhiteElo "2278"]
[BlackElo "2417"]
[Result "1-0"]
[Round "11"]
[TimeControl "180+1"]
[Date "2022.05.24"]
[WhiteClock "0:00:23"]
[BlackClock "0:00:01"]

1. d4 {[%clk 0:03:00]}  Nf6 {[%clk 0:02:51]} 2. Nc3 {[%clk 0:03:00]}  c5 {[%clk 0:02:48]} 3. d5 {[%clk 0:02:55]}  e5 {[%clk 0:02:48]} 4. e4 {[%clk 0:02:49]}  d6 {[%clk 0:02:49]} 5. Nge2 {[%clk 0:02:43]}  g6 {[%clk 0:02:49]} 6. Ng3 {[%clk 0:02:43]}  Bg7 {[%clk 0:02:50]} 7. h4 {[%clk 0:02:43]}  h5 {[%clk 0:02:50]} 8. Bg5 {[%clk 0:02:43]}  O-O {[%clk 0:02:49]} 9. Qd2 {[%clk 0:02:43]}  a6 {[%clk 0:02:48]} 10. a4 {[%clk 0:02:42]}  b6 {[%clk 0:02:47]} 11. Be2 {[%clk 0:02:41]}  Qc7 {[%clk 0:02:48]} 12. Bh6 {[%clk 0:02:40]}  Ne8 {[%clk 0:02:43]} 13. Bxg7 {[%clk 0:02:32]}  Nxg7 {[%clk 0:02:44]} 14. f4 {[%clk 0:02:32]}  exf4 {[%clk 0:02:39]} 15. Qxf4 {[%clk 0:02:32]}  Nd7 {[%clk 0:02:40]} 16. Kd2 {[%clk 0:02:28]}  Ne5 {[%clk 0:02:41]} 17. Raf1 {[%clk 0:02:28]}  Qe7 {[%clk 0:02:40]} 18. Qh6 {[%clk 0:02:20]}  Bd7 {[%clk 0:02:37]} 19. Rf4 {[%clk 0:02:16]}  b5 {[%clk 0:02:36]} 20. Rhf1 {[%clk 0:02:16]}  b4 {[%clk 0:02:35]} 21. Nd1 {[%clk 0:02:15]}  f6 {[%clk 0:02:31]} 22. Ne3 {[%clk 0:02:10]}  Bxa4 {[%clk 0:02:31]} 23. Nh1 {[%clk 0:01:53]}  Bd7 {[%clk 0:02:28]} 24. g4 {[%clk 0:01:52]}  Nf7 {[%clk 0:02:28]} 25. Qxg6 {[%clk 0:01:52]}  Ne5 {[%clk 0:02:27]} 26. Qh6 {[%clk 0:01:50]}  c4 {[%clk 0:02:12]} 27. gxh5 {[%clk 0:01:45]}  c3+ {[%clk 0:02:13]} 28. bxc3 {[%clk 0:01:45]}  bxc3+ {[%clk 0:02:13]} 29. Ke1 {[%clk 0:01:45]}  Nf7 {[%clk 0:02:08]} 30. Qg6 {[%clk 0:01:39]}  Ne5 {[%clk 0:02:08]} 31. Qh6 {[%clk 0:01:32]}  Nf7 {[%clk 0:02:08]} 32. Qxf6 {[%clk 0:01:15]}  Qxf6 {[%clk 0:02:08]} 33. Rxf6 {[%clk 0:01:16]}  Ne5 {[%clk 0:02:03]} 34. Rxd6 {[%clk 0:01:11]}  Rxf1+ {[%clk 0:02:01]} 35. Kxf1 {[%clk 0:01:11]}  a5 {[%clk 0:01:57]} 36. Nc4 {[%clk 0:01:11]}  Ne8 {[%clk 0:01:54]} 37. Rb6 {[%clk 0:01:07]}  Nf7 {[%clk 0:01:22]} 38. e5 {[%clk 0:01:02]}  Bf5 {[%clk 0:01:23]} 39. e6 {[%clk 0:00:58]}  Nd8 {[%clk 0:01:19]} 40. Ne3 {[%clk 0:00:56]}  Bh3+ {[%clk 0:01:11]} 41. Kf2 {[%clk 0:00:53]}  a4 {[%clk 0:01:12]} 42. Bc4 {[%clk 0:00:53]}  a3 {[%clk 0:01:13]} 43. Ba2 {[%clk 0:00:53]}  Nf6 {[%clk 0:01:10]} 44. Ng3 {[%clk 0:00:52]}  Kf8 {[%clk 0:01:03]} 45. Kf3 {[%clk 0:00:46]}  Nxd5 {[%clk 0:00:34]} 46. Bxd5 {[%clk 0:00:33]}  a2 {[%clk 0:00:35]} 47. Bxa2 {[%clk 0:00:32]}  Rxa2 {[%clk 0:00:36]} 48. Ngf5 {[%clk 0:00:31]}  Ke8 {[%clk 0:00:10]} 49. Kf4 {[%clk 0:00:26]}  Bxf5 {[%clk 0:00:07]} 50. Kxf5 {[%clk 0:00:26]}  Ra5+ {[%clk 0:00:07]} 51. Kf6 {[%clk 0:00:25]}  Rxh5 {[%clk 0:00:06]} 52. Nf5 {[%clk 0:00:24]}  Rh8 {[%clk 0:00:01]} 53. Ng7+ {[%clk 0:00:22]}  Kf8 {[%clk 0:00:01]} 54. e7+ {[%clk 0:00:23]} 1-0


[Site "https://www.chess.com"]

[Event "Titled Tuesday Blitz May 24 Late 2022"]
[White "Domingo Nunez, Ruben"]
[Black "Griffith, Kyron"]
[WhiteFideId "22245570"]
[BlackFideId "2046318"]
[WhiteElo "2376"]
[BlackElo "2232"]
[Result "0-1"]
[Round "11"]
[TimeControl "180+1"]
[Date "2022.05.24"]
[WhiteClock "0:00:03"]
[BlackClock "0:00:17"]

1. c4 {[%clk 0:03:00]}  Nf6 {[%clk 0:02:59]} 2. Nc3 {[%clk 0:03:00]}  c5 {[%clk 0:02:56]} 3. g3 {[%clk 0:02:58]}  e6 {[%clk 0:02:53]} 4. Bg2 {[%clk 0:02:58]}  d5 {[%clk 0:02:54]} 5. cxd5 {[%clk 0:02:57]}  exd5 {[%clk 0:02:55]} 6. d4 {[%clk 0:02:57]}  cxd4 {[%clk 0:02:47]} 7. Qxd4 {[%clk 0:02:56]}  Nc6 {[%clk 0:02:46]} 8. Qa4 {[%clk 0:02:55]}  Be6 {[%clk 0:02:41]} 9. Nf3 {[%clk 0:02:50]}  Bc5 {[%clk 0:02:38]} 10. Bg5 {[%clk 0:02:22]}  O-O {[%clk 0:02:34]} 11. O-O {[%clk 0:02:18]}  h6 {[%clk 0:02:31]} 12. Bxf6 {[%clk 0:02:00]}  Qxf6 {[%clk 0:02:32]} 13. Rfd1 {[%clk 0:01:59]}  Rfd8 {[%clk 0:02:30]} 14. Rac1 {[%clk 0:01:52]}  Bb6 {[%clk 0:02:29]} 15. Qb5 {[%clk 0:01:49]}  Rac8 {[%clk 0:02:13]} 16. Na4 {[%clk 0:01:30]}  Nd4 {[%clk 0:01:55]} 17. Nxd4 {[%clk 0:01:30]}  Rxc1 {[%clk 0:01:51]} 18. Rxc1 {[%clk 0:01:29]}  Bxd4 {[%clk 0:01:49]} 19. e3 {[%clk 0:01:27]}  Be5 {[%clk 0:01:39]} 20. Qxb7 {[%clk 0:00:58]}  d4 {[%clk 0:01:38]} 21. Qxa7 {[%clk 0:00:46]}  d3 {[%clk 0:01:27]} 22. Qa5 {[%clk 0:00:26]}  Bxa2 {[%clk 0:01:14]} 23. f4 {[%clk 0:00:18]}  Bd6 {[%clk 0:00:49]} 24. Nc3 {[%clk 0:00:11]}  Bb3 {[%clk 0:00:43]} 25. Qb6 {[%clk 0:00:10]}  d2 {[%clk 0:00:39]} 26. Ra1 {[%clk 0:00:09]}  Bxf4 {[%clk 0:00:26]} 27. Qxb3 {[%clk 0:00:03]}  Bxe3+ {[%clk 0:00:24]} 28. Kh1 {[%clk 0:00:04]}  Bd4 {[%clk 0:00:20]} 29. Rd1 {[%clk 0:00:04]}  Bxc3 {[%clk 0:00:19]} 30. Qxc3 {[%clk 0:00:03]}  Qf2 {[%clk 0:00:17]} 0-1


[Site "https://www.chess.com"]

[Event "Titled Tuesday Blitz May 24 Late 2022"]
[White "Gomez Dieguez, David"]
[Black "Zherebtsova, Alexandra"]
[WhiteFideId "22223630"]
[BlackFideId "24129518"]
[WhiteElo "2115"]
[BlackElo "2025"]
[Result "0-1"]
[Round "11"]
[TimeControl "180+1"]
[Date "2022.05.25"]
[WhiteClock "0:00:18"]
[BlackClock "0:00:09"]

1. c4 {[%clk 0:03:00]}  e5 {[%clk 0:02:54]} 2. Nc3 {[%clk 0:03:00]}  f5 {[%clk 0:02:52]} 3. d4 {[%clk 0:02:56]}  e4 {[%clk 0:02:45]} 4. g3 {[%clk 0:02:55]}  Nf6 {[%clk 0:02:44]} 5. Bg5 {[%clk 0:02:53]}  h6 {[%clk 0:02:43]} 6. Bxf6 {[%clk 0:02:53]}  Qxf6 {[%clk 0:02:44]} 7. h4 {[%clk 0:02:51]}  g6 {[%clk 0:02:42]} 8. Nh3 {[%clk 0:02:47]}  c6 {[%clk 0:02:27]} 9. Nf4 {[%clk 0:02:42]}  Bg7 {[%clk 0:02:25]} 10. e3 {[%clk 0:02:42]}  d6 {[%clk 0:02:23]} 11. Qb3 {[%clk 0:02:35]}  Nd7 {[%clk 0:02:08]} 12. Be2 {[%clk 0:02:30]}  Nb6 {[%clk 0:01:49]} 13. a4 {[%clk 0:02:12]}  Qf7 {[%clk 0:01:28]} 14. a5 {[%clk 0:02:10]}  Nd7 {[%clk 0:01:27]} 15. a6 {[%clk 0:02:06]}  bxa6 {[%clk 0:01:17]} 16. Qa3 {[%clk 0:02:00]}  Bf8 {[%clk 0:01:17]} 17. Qa4 {[%clk 0:02:00]}  Bb7 {[%clk 0:01:15]} 18. O-O {[%clk 0:01:54]}  Be7 {[%clk 0:01:06]} 19. Qd1 {[%clk 0:01:53]}  Nf6 {[%clk 0:01:01]} 20. Ra5 {[%clk 0:01:52]}  Bd8 {[%clk 0:00:58]} 21. Ra4 {[%clk 0:01:49]}  g5 {[%clk 0:00:53]} 22. Ng2 {[%clk 0:01:40]}  O-O {[%clk 0:00:33]} 23. Qb3 {[%clk 0:01:39]}  Rb8 {[%clk 0:00:22]} 24. Qa3 {[%clk 0:01:39]}  Bc7 {[%clk 0:00:19]} 25. d5 {[%clk 0:01:37]}  c5 {[%clk 0:00:18]} 26. Ra1 {[%clk 0:01:33]}  Nd7 {[%clk 0:00:18]} 27. hxg5 {[%clk 0:01:31]}  hxg5 {[%clk 0:00:17]} 28. b3 {[%clk 0:01:18]}  Ne5 {[%clk 0:00:17]} 29. Qc1 {[%clk 0:01:16]}  Kg7 {[%clk 0:00:16]} 30. Qd1 {[%clk 0:01:16]}  Rh8 {[%clk 0:00:16]} 31. Ne1 {[%clk 0:01:08]}  Qg6 {[%clk 0:00:16]} 32. Bf1 {[%clk 0:01:07]}  Qh6 {[%clk 0:00:16]} 33. Bg2 {[%clk 0:01:07]}  g4 {[%clk 0:00:15]} 34. Kf1 {[%clk 0:01:07]}  Nf3 {[%clk 0:00:15]} 35. Ke2 {[%clk 0:01:02]}  Qf6 {[%clk 0:00:15]} 36. Qc2 {[%clk 0:00:59]}  Qe5 {[%clk 0:00:15]} 37. Rd1 {[%clk 0:00:52]}  Bd8 {[%clk 0:00:15]} 38. Na2 {[%clk 0:00:50]}  Bf6 {[%clk 0:00:15]} 39. Rc1 {[%clk 0:00:48]}  Rh2 {[%clk 0:00:13]} 40. Bxf3 {[%clk 0:00:45]}  gxf3+ {[%clk 0:00:13]} 41. Kd1 {[%clk 0:00:46]}  Rh1 {[%clk 0:00:13]} 42. Kd2 {[%clk 0:00:45]}  Rbh8 {[%clk 0:00:12]} 43. b4 {[%clk 0:00:42]}  R8h2 {[%clk 0:00:12]} 44. Kd1 {[%clk 0:00:40]}  Rg1 {[%clk 0:00:11]} 45. bxc5 {[%clk 0:00:38]}  dxc5 {[%clk 0:00:11]} 46. Ra3 {[%clk 0:00:26]}  Rhh1 {[%clk 0:00:11]} 47. Qd2 {[%clk 0:00:24]}  Rxe1+ {[%clk 0:00:10]} 48. Qxe1 {[%clk 0:00:25]}  Rxe1+ {[%clk 0:00:10]} 49. Kxe1 {[%clk 0:00:25]}  Qb2 {[%clk 0:00:10]} 50. Rcc3 {[%clk 0:00:18]}  Qe2# {[%clk 0:00:09]} 0-1


[Site "https://www.chess.com"]